fUST/lending_fUST_20250923
["ID","MTS","AMOUNT","RATE_DAILY","PERIOD"]
[387165965,1758601845045,-557.64,0.0002061,2]
[387165966,1758601845055,-480.0,0.0002061,2]
[387165967,1758601845065,-419.73568351,0.0002061,2]
[387165968,1758601845074,-480.0,0.0002061,2]
[387165969,1758601845084,-2380.35,0.0002061,2]
[387165970,1758601845093,-480.0,0.0002061,2]
[387165971,1758601845103,-480.0,0.0002061,2]
[387165972,1758601845112,-480.0,0.0002061,2]
[387165973,1758601845123,-480.0,0.0002061,2]
[387165974,1758601845132,-480.0,0.00020611,2]
[387165975,1758601845141,-480.0,0.00020611,2]
[387165976,1758601845151,-240.3621039,0.00020611,2]
[387165977,1758601845162,-454.25,0.00020839,2]
[387165978,1758601845172,-4620.59,0.00020874,10]
[387165979,1758601845182,-480.0,0.00020883,2]
[387165980,1758601845191,-480.0,0.00020883,2]
[387165981,1758601845200,-459.2,0.00020884,2]
[387165982,1758601845210,-1234.05,0.00020884,2]
[387165983,1758601845220,-480.0,0.00020884,2]
[387165984,1758601845231,-480.0,0.00020884,2]
[387165985,1758601845241,-480.0,0.00020884,2]
[387165986,1758601845251,-2380.35,0.00020884,2]
[387165987,1758601845260,-161.03,0.00020884,2]
[387165988,1758601845269,-480.0,0.00020884,2]
[387165989,1758601845279,-480.0,0.00020884,2]
[387165990,1758601845288,-480.0,0.00020885,2]
[387165991,1758601845297,-480.0,0.00020885,2]
[387165992,1758601845307,-1280.5,0.00020983,2]
[387165993,1758601845316,-2423.05,0.00021055,10]
[387165994,1758601845325,-978.0,0.00021065,2]
[387165995,1758601845334,-2159.0,0.00021065,2]
[387165996,1758601845344,-635.0,0.00021065,2]
[387165997,1758601845353,-410.0,0.00021065,2]
[387165998,1758601845363,-417.975,0.00021065,2]
[387165999,1758601845374,-150.413,0.00021086,2]
[387166000,1758601845383,-150.12,0.00021086,2]
[387166001,1758601845393,-160.0,0.00021127,2]
[387166002,1758601845403,-233.58652103,0.00021127,2]
[387166003,1758601845412,-160.0,0.00021127,2]
[387166004,1758601845422,-160.0,0.00021127,2]
[387166005,1758601845431,-160.0,0.00021127,2]
[387166006,1758601845441,-480.0,0.00021157,2]
[387166007,1758601845451,-377.76,0.00021157,2]
[387166008,1758601845460,-1234.05,0.00021158,2]
[387166009,1758601845470,-480.0,0.00021158,2]
[387166010,1758601845480,-480.0,0.00021158,2]
[387166011,1758601845490,-480.0,0.00021158,2]
[387166012,1758601845499,-2380.35,0.00021158,2]
[387166013,1758601845509,-514.87689636,0.00021158,2]
[387166014,1758601845519,-480.0,0.00021158,2]
[387166015,1758601845528,-153.013734,0.00021159,2]
[387166016,1758601845538,-374.5,0.00021159,2]
[387166017,1758601845551,-151.0,0.00021159,2]
[387166018,1758601845560,-191.029114,0.00021159,2]
[387166019,1758601845570,-157.193493,0.00021159,2]
[387166020,1758601845581,-485.74269838,0.00021159,2]
[387166021,1758601845591,-1046.0,0.00021194,2]
[387166022,1758601845600,-151.0,0.00021329,2]
[387166023,1758601845610,-151.0,0.00021431,2]
[387166024,1758601845620,-158.606774,0.00021431,2]
[387166025,1758601845630,-151.0,0.00021431,2]
[387166026,1758601845640,-151.0,0.00021431,2]
[387166027,1758601845650,-480.0,0.00021431,2]
[387166028,1758601845659,-1234.05,0.00021432,2]
[387166029,1758601845669,-245.23493164,0.00021432,2]
[387166030,1758601845679,-480.0,0.00021432,2]
[387166031,1758601845688,-480.0,0.00021432,2]
[387166032,1758601845698,-2380.35,0.00021432,2]
[387166033,1758601845707,-480.0,0.00021432,2]
[387166034,1758601845717,-480.0,0.00021705,2]
[387166035,1758601845726,-1234.05,0.00021706,2]
[387166036,1758601845736,-480.0,0.00021706,2]
[387166037,1758601845745,-480.0,0.00021706,2]
[387166038,1758601845755,-2380.35,0.00021706,2]
[387166039,1758601845765,-480.0,0.00021706,2]
[387166040,1758601845775,-151.0,0.00021707,2]
[387166041,1758601845785,-151.0,0.00021725,2]
[387166042,1758601845796,-500.7435371,0.00021917,2]
[387166043,1758601845806,-480.0,0.00021979,2]
[387166044,1758601845815,-1234.05,0.0002198,2]
[387166045,1758601845825,-316.6966624,0.0002198,2]
[387166046,1758601845839,-163.3033376,0.0002198,2]
[387166047,1758601845848,-480.0,0.0002198,2]
[387166048,1758601845858,-38.92654224,0.0002198,2]
[387166060,1758601846898,-1437.1938843,0.0002198,2]
[387166061,1758601846911,-904.22957346,0.0002198,2]
[387166062,1758601846920,-480.0,0.0002198,2]
[387166063,1758601846930,-2560.99,0.00021983,2]
[387166064,1758601846940,-166.0,0.00022033,3]
[387166065,1758601846949,-171.12864961,0.00022033,3]
[387166066,1758601846959,-1609.90333725,0.0002211,3]
[387166067,1758601846968,-151.0,0.00022122,3]
[387166068,1758601846978,-311.52552541,0.00022253,2]
[387166069,1758601846990,-98.65447459,0.00022253,2]
[387166070,1758601846999,-1234.05,0.00022254,2]
[387166071,1758601847008,-480.0,0.00022254,2]
[387166072,1758601847019,-480.0,0.00022254,2]
[387166073,1758601847029,-2380.35,0.00022254,2]
[387166074,1758601847039,-480.0,0.00022254,2]
[387166075,1758601847049,-150.0,0.000225,2]
[387166076,1758601847059,-151.0,0.00022519,3]
[387166077,1758601847069,-1234.05,0.00022528,2]
[387166079,1758601847080,-480.0,0.00022528,2]
[387166081,1758601847090,-214.9,0.00022528,2]
[387166083,1758601847101,-1296.48697582,0.00022528,2]
[387166085,1758601847113,-527.3554621,0.00022528,2]
[387166087,1758602191929,-155.63315733,0.00018864,2]
[387167090,1758602972771,-435.17430606,0.00025,30]
[387167091,1758602972923,-155.22605302,0.00025,30]
[387167092,1758602972952,-1669.27477628,0.00026,30]
[387167093,1758602972978,-250.0,0.00026027,30]
[387167094,1758602973005,-1837.16309046,0.00027,40]
[387167095,1758602973031,-9963.0,0.00027,60]
[387167096,1758602973059,-813.89725945,0.000274,120]
[387167097,1758602973089,-154.0,0.000275,120]
[387167098,1758602973115,-1444.0,0.00027589,120]
[387167099,1758602973142,-200.0,0.00027666,120]
[387167100,1758602973169,-1209.54961,0.000277,120]
[387167101,1758602973196,-813.89725945,0.000277,120]
[387167102,1758602973235,-3512.94937254,0.0002785,60]
[387167103,1758602973260,-813.89725945,0.000279,120]
[387167104,1758602973284,-2214.56700355,0.00028,120]
[387167105,1758602973309,-652.3311887,0.00028005,120]
[387167106,1758602973334,-106414.43853214,0.00028006,120]
[387167107,1758602973359,-813.89725945,0.000282,120]
[387167108,1758602973384,-207.0,0.0002821,30]
[387167109,1758602973409,-1209.54961,0.000284,120]
[387167110,1758602973435,-813.89725945,0.000285,120]
[387167111,1758602973460,-3500.0,0.000287,120]
[387167112,1758602973485,-207.0,0.0002871,30]
[387167113,1758602973515,-5000.0,0.00028792,60]
[387167114,1758602973541,-522.84,0.000289,120]
[387167115,1758602973566,-388.96809,0.00029,120]
[387167116,1758602973592,-170.54,0.00029,30]
[387167117,1758602973620,-8907.08661908,0.00029,60]
[387167118,1758602973644,-417.15472785,0.00029,120]
[387167119,1758602973669,-279.25934939,0.00029086,30]
[387167120,1758602973693,-1209.54961,0.000291,120]
[387167121,1758602973717,-500.0,0.00029111,60]
[387167122,1758602973742,-543.15,0.00029113,30]
[387167123,1758602973773,-349.0,0.0002912,60]
[387167124,1758602973797,-159.99,0.00029128,60]
[387167125,1758602973821,-1002.0,0.00029129,120]
[387167126,1758602973848,-165.329153,0.00029164,60]
[387167127,1758602973873,-207.0,0.0002921,30]
[387167128,1758602973900,-413.0,0.00029212,60]
[387167129,1758602973926,-518.1197,0.00029234,120]
[387167130,1758602973950,-5000.0,0.00029254,60]
[387167131,1758602973975,-5000.0,0.00029259,60]
[387167132,1758602973999,-3000.0,0.00029259,60]
[387167133,1758602974025,-3577.43,0.00029259,60]
[387167134,1758602974049,-500.0,0.00029259,30]
[387167135,1758602974074,-407.79,0.00029259,30]
[387167136,1758602974101,-154.0,0.000293,120]
[387167137,1758602974125,-904.11652285,0.00029386,60]
[387167138,1758602974149,-155.0,0.00029479,34]
[387167139,1758602974175,-1978.64143425,0.000295,120]
[387167140,1758602974200,-1209.54961,0.000298,120]
[387167141,1758602974225,-417.15472785,0.000299,120]
[387167142,1758602974250,-1819.1275748,0.0003,60]
[387167143,1758602974274,-859.74687994,0.0003,120]
[387167144,1758602974298,-177.71011886,0.0003,120]
[387167145,1758602974322,-1073.88735905,0.0003,60]
[387167146,1758602974346,-4310.7009867,0.0003,120]
[387167147,1758602974370,-729.20742466,0.0003,50]
[387167148,1758602974395,-624.0,0.0003,30]
[387167149,1758602974421,-300.0,0.0003,120]
[387167150,1758602974445,-161.0,0.0003,120]
[387167151,1758602974469,-916.57435457,0.0003,120]
[387167152,1758602974495,-3865.6,0.0003,120]
[387167153,1758602974519,-233.55588323,0.0003,30]
[387167154,1758602974543,-417.15472785,0.0003,30]
[387167155,1758602974567,-160.0,0.0003,30]
[387167156,1758602974592,-167.52339136,0.0003015,120]
[387167157,1758602974615,-916.57435457,0.000303,120]
[387167158,1758602974639,-1209.54961,0.000305,120]
[387167159,1758602974664,-1086.31,0.000305,30]
[387167160,1758602974688,-916.57435457,0.000306,120]
[387167161,1758602974714,-436.13124041,0.0003079,30]
[387167162,1758602974739,-315.86280428,0.000308,120]
[387167163,1758602974764,-417.15472785,0.000308,120]
[387167164,1758602974793,-916.57435457,0.000309,120]
[387167165,1758602974818,-200.0,0.0003099,120]
[387167166,1758602974843,-233.55588323,0.00031,120]
[387167167,1758602974867,-14295.94762638,0.00031,120]
[387167168,1758602974982,-233.55588323,0.00031,120]
[387167169,1758602975007,-847.8,0.00031,120]
[387167170,1758602975031,-186.34099827,0.00031,120]
[387167171,1758602975055,-1072.60678349,0.00031,120]
[387167172,1758602975080,-4594.12124676,0.00031,120]
[387167173,1758602975102,-279.15586716,0.00031,120]
[387167174,1758602975126,-160.0,0.00031,120]
[387167175,1758602975151,-200.0,0.00031043,120]
[387167176,1758602975177,-154.0,0.000311,120]
[387167177,1758602975201,-1209.54961,0.000312,120]
[387167178,1758602975227,-916.57435457,0.000312,120]
[387167179,1758602975252,-847.8,0.000313,120]
[387167180,1758602975275,-186.34099827,0.000313,120]
[387167181,1758602975299,-1072.60678349,0.000313,120]
[387167182,1758602975321,-4594.12124676,0.000313,120]
[387167183,1758602975344,-279.15586716,0.000313,120]
[387167184,1758602975368,-130200.0,0.000315,120]
[387167185,1758602975392,-847.8,0.000316,120]
[387167186,1758602975417,-186.34099827,0.000316,120]
[387167187,1758602975443,-1072.60678349,0.000316,120]
[387167188,1758602975468,-4594.12124676,0.000316,120]
[387167189,1758602975495,-279.15586716,0.000316,120]
[387167190,1758602975520,-90000.0,0.0003185,82]
[387167191,1758602975545,-60000.0,0.0003185,84]
[387167192,1758602975570,-1629.46,0.00031886,30]
[387167193,1758602975595,-1209.54961,0.000319,120]
[387167194,1758602975620,-847.8,0.000319,120]
[387167195,1758602975646,-1072.60678349,0.000319,120]
[387167196,1758602975673,-4594.12124676,0.000319,120]
[387167197,1758602975698,-279.15586716,0.000319,120]
[387167198,1758602975723,-300.0,0.00032,120]
[387167199,1758602975748,-233.55588323,0.00032,120]
[387167200,1758602975772,-30000.0,0.00032176,83]
[387167201,1758602975798,-1444.0,0.00032274,120]
[387167202,1758602975822,-847.8,0.000323,120]
[387167203,1758602975847,-1072.60678349,0.000323,120]
[387167204,1758602975872,-4594.12124676,0.000323,120]
[387167205,1758602975897,-279.15586716,0.000323,120]
[387167206,1758602975922,-1209.54964,0.000326,120]
[387167207,1758602975947,-1072.60678349,0.000326,120]
[387167208,1758602975971,-4594.12124676,0.000326,120]
[387167209,1758602975994,-80000.0,0.000328,119]
[387167210,1758602976021,-90000.0,0.000328,119]
[387167211,1758602976046,-154.0,0.000328,120]
[387167212,1758602976070,-100000.0,0.0003285,88]
[387167213,1758602976095,-2939.91,0.00032876,120]
[387167214,1758602976121,-160.80744993,0.0003288,30]
[387167215,1758602976145,-160.80744993,0.0003288,30]
[387167216,1758602976168,-160.8,0.0003288,30]
[387167217,1758602976192,-160.80744993,0.0003288,30]
[387167218,1758602976215,-160.80744993,0.0003288,30]
[387167219,1758602976238,-160.80744993,0.0003288,30]
[387167220,1758602976266,-160.80744993,0.0003288,30]
[387167221,1758602976294,-160.80744993,0.0003288,30]
[387167222,1758602976321,-160.80744993,0.0003288,30]
[387167223,1758602976347,-160.8,0.0003288,30]
[387167224,1758602976375,-156.51253654,0.0003288,30]
[387167225,1758602976403,-156.51,0.0003288,30]
[387167226,1758602976429,-182.5979593,0.0003288,30]
[387167227,1758602976456,-182.5979593,0.0003288,30]
[387167228,1758602976484,-182.5979593,0.0003288,30]
[387167229,1758602976515,-182.59,0.0003288,30]
[387167230,1758602976547,-1072.60678349,0.000329,120]
[387167231,1758602976575,-4594.12124676,0.000329,120]
[387167232,1758602976603,-1000.0,0.00033,120]
[387167233,1758602976628,-1069.0,0.00033,120]
[387167234,1758602976656,-5256.29619485,0.00033,30]
[387167235,1758602976684,-167.84119658,0.00033,30]
[387167236,1758602976715,-70000.0,0.0003318,86]
[387167237,1758602976742,-1072.60678349,0.000332,120]
[387167238,1758602976768,-4594.12124676,0.000332,120]
[387167239,1758602976796,-16390.92627904,0.000332,117]
[387167240,1758602976824,-16390.92627902,0.000332,117]
[387167241,1758602976852,-16390.92627902,0.000332,117]
[387167242,1758602976881,-16390.92627902,0.000332,117]
[387167243,1758602976910,-16390.92627902,0.000332,117]
[387167244,1758602976940,-2172.62,0.00033272,30]
[387167245,1758602976970,-90000.0,0.0003358,120]
[387167246,1758602976998,-1072.60678349,0.000336,120]
[387167247,1758602977024,-4594.12124676,0.000336,120]
[387167248,1758602977050,-842.32726907,0.00033836,30]
[387167249,1758602977078,-1072.60678349,0.000339,120]
[387167250,1758602977108,-4594.12124676,0.000339,120]
[387167251,1758602977137,-300.0,0.00034,120]
[387167252,1758602977162,-10000.0,0.00034175,81]
[387167253,1758602977189,-160.0,0.00034411,69]
[387167254,1758602977216,-500.0,0.000345,120]
[387167255,1758602977244,-154.0,0.000346,120]
[387167256,1758602977270,-2715.77,0.00034659,30]
[387167257,1758602977296,-875.82702524,0.000347,30]
[387167258,1758602977323,-200.0,0.00034754,120]
[387167259,1758602977351,-2939.91,0.00034794,120]
[387167260,1758602977377,-66000.0,0.0003486,116]
[387167261,1758602977405,-20000.0,0.0003495,82]
[387167262,1758602977433,-150.0,0.00035,69]
[387167263,1758602977460,-1840.93951941,0.00035,120]
[387167264,1758602977487,-216.74927476,0.00035,120]
[387167265,1758602977517,-209.19862883,0.00035,120]
[387167266,1758602977542,-213.15584481,0.00035,30]
[387167267,1758602977568,-615.54713507,0.00035,120]
[387167268,1758602977595,-500.0,0.00035,120]
[387167269,1758602977623,-200.0,0.00035,120]
[387167270,1758602977651,-30000.0,0.0003517,83]
[387167271,1758602977679,-200.0,0.00035459,120]
[387167272,1758602977848,-40000.0,0.00035478,84]
[387167273,1758602977875,-60000.0,0.0003548,116]
[387167274,1758602977900,-500.0,0.000355,120]
[387167275,1758602977925,-200.0,0.00035515,120]
[387167276,1758602977950,-5000.0,0.00035994,55]
[387167277,1758602977974,-5000.0,0.00035994,50]
[387167278,1758602977998,-5000.0,0.00035994,53]
[387167279,1758602978022,-5000.0,0.00035994,52]
[387167280,1758602978046,-5000.0,0.00035994,55]
[387167281,1758602978071,-157.07066742,0.00036,30]
[387167282,1758602978096,-1000.0,0.00036,120]
[387167284,1758602978121,-300.0,0.00036,120]
[387167285,1758602978145,-500.0,0.00036,120]
[387167286,1758602978169,-3258.92,0.00036045,30]
[387167287,1758602978195,-200.0,0.00036275,120]
[387167288,1758602978220,-154.0,0.000364,120]
[387167289,1758602978245,-60000.0,0.0003645,86]
[387167290,1758602978270,-296.79619871,0.000365,120]
[387167291,1758602978294,-1057.92,0.000365,120]
[387167292,1758602978317,-500.0,0.000365,120]
[387167293,1758602978341,-2939.91,0.00036712,120]
[387167294,1758602978365,-50000.0,0.0003675,85]
[387167295,1758602978389,-11467.52752584,0.00036896,60]
[387167296,1758602978414,-945.58542068,0.00036959,90]
[387167297,1758602978438,-1000.0,0.00037,120]
[387167298,1758602978462,-500.0,0.00037,120]
[387167299,1758602978487,-231.00475877,0.00037,120]
[387167300,1758602978517,-80000.0,0.0003715,88]
[387167301,1758602978544,-3802.08,0.00037431,30]
[387167302,1758602978571,-500.0,0.000375,120]
[387167303,1758602978598,-200.0,0.00037765,120]
[387167304,1758602978624,-70000.0,0.0003786,87]
[387167305,1758602978651,-300.0,0.00038,120]
[387167306,1758602978675,-500.0,0.00038,120]
[387167307,1758602978702,-154.0,0.000381,120]
[387167308,1758602978728,-1948.78292101,0.00038122,30]
[387167309,1758602978754,-2040.75067696,0.000382,120]
[387167310,1758602978780,-90000.0,0.0003834,89]
[387167311,1758602978805,-55000.0,0.0003843,115]
[387167312,1758602978831,-231.00475877,0.0003847,120]
[387167313,1758602978857,-100000.0,0.00038476,90]
[387167314,1758602978885,-500.0,0.000385,120]
[387167315,1758602978910,-523.80318516,0.00038521,120]
[387167316,1758602978937,-2939.91,0.0003863,120]
[387167317,1758602978963,-4345.23,0.00038818,30]
[387167318,1758602978988,-188.66338133,0.0003888,30]
[387167319,1758602979013,-2000.0,0.000389,120]
[387167320,1758602979038,-165.05395616,0.00039,120]
[387167321,1758602979063,-9059.83585661,0.00039,120]
[387167322,1758602979088,-1000.0,0.00039,120]
[387167323,1758602979114,-20000.0,0.00039,30]
[387167324,1758602979138,-2000.0,0.00039,120]
[387167325,1758602979181,-4200.0,0.00039,60]
[387167326,1758602979207,-1948.78292101,0.00039194,32]
[387167327,1758602979234,-200.0,0.00039461,120]
[387167328,1758602979259,-2000.0,0.000395,120]
[387167329,1758602979283,-484.14463872,0.000398,120]
[387167330,1758602979309,-242.43728858,0.00039877,120]
[387167331,1758602979336,-154.0,0.000399,120]
[387167332,1758602979362,-662.47640228,0.0004,120]
[387167333,1758602979387,-1119.75361134,0.0004,30]
[387167334,1758602979411,-2834.03115764,0.0004,120]
[387167335,1758602979436,-440.04221641,0.0004,30]
[387167336,1758602979460,-300.0,0.0004,120]
[387167337,1758602979486,-2000.0,0.0004,120]
[387167338,1758602979513,-1000.0,0.0004,120]
[387167339,1758602979537,-11589.791799,0.0004,30]
[387167340,1758602979561,-425646.29178897,0.0004,120]
[387167341,1758602979585,-6357.0,0.0004,120]
[387167342,1758602979610,-147249.48289356,0.0004,120]
[387167343,1758602979634,-231.00475877,0.0004,120]
[387167344,1758602979658,-2000.0,0.0004,120]
[387167345,1758602979683,-233.58652103,0.0004,30]
[387167346,1758602979706,-160.0,0.0004,30]
[387167347,1758602979731,-417.15472785,0.0004,30]
[387167348,1758602979755,-396.32502741,0.00040193,120]
[387167349,1758602979781,-4888.39,0.00040204,30]
[387167350,1758602979806,-1948.78292101,0.00040265,35]
[387167351,1758602979830,-2000.0,0.000405,120]
[387167352,1758602979855,-2939.91,0.00040547,120]
[387167353,1758602979880,-200.0,0.00040611,120]
[387167354,1758602979905,-200.0,0.00040712,120]
[387167355,1758602979930,-2000.0,0.000409,120]
[387167356,1758602979954,-2000.0,0.00041,120]
[387167357,1758602979978,-1000.0,0.00041,120]
[387167358,1758602980002,-219.4,0.00041041,120]
[387167359,1758602980027,-233.58652103,0.000412,30]
[387167360,1758602980052,-160.0,0.000412,30]
[387167361,1758602980076,-417.15472785,0.000412,30]
[387167362,1758602980102,-1948.78292101,0.00041337,37]
[387167363,1758602980126,-2352.54719897,0.0004144,120]
[387167364,1758602980150,-2000.0,0.000415,120]
[387167365,1758602980176,-5431.53644527,0.0004159,30]
[387167366,1758602980201,-200.0,0.00041642,120]
[387167367,1758602980228,-245.06666148,0.00041644,120]
[387167368,1758602980255,-154.0,0.000417,120]
[387167369,1758602980282,-300.0,0.00042,120]
[387167370,1758602980306,-2000.0,0.00042,120]
[387167371,1758602980331,-1300.0,0.00042091,60]
[387167372,1758602980355,-200.0,0.00042221,120]
[387167373,1758602980471,-1781.26566752,0.000424,120]
[387167374,1758602980503,-1948.78292101,0.00042409,39]
[387167375,1758602980531,-2939.91,0.00042465,120]
[387167376,1758602980558,-2000.0,0.000425,120]
[387167377,1758602980584,-212.4,0.000426,120]
[387167378,1758602980610,-500.0,0.00042628,65]
[387167379,1758602980634,-151.0,0.00042628,65]
[387167380,1758602980659,-2650.13151289,0.000428,30]
[387167381,1758602980685,-219.4,0.00042841,120]
[387167382,1758602980709,-2000.0,0.000429,120]
[387167383,1758602980733,-1361.09120057,0.00043,120]
[387167384,1758602980756,-284.81687234,0.00043,120]
[387167385,1758602980780,-2000.0,0.00043,120]
[387167386,1758602980805,-1000.0,0.00043,120]
[387167387,1758602980830,-310.07105479,0.00043187,60]
[387167388,1758602980855,-200.0,0.00043287,120]
[387167389,1758602980880,-154.0,0.000434,120]
[387167390,1758602980906,-350.0,0.0004348,42]
[387167391,1758602980933,-194.72792766,0.0004348,42]
[387167392,1758602980958,-500.0,0.0004348,42]
[387167393,1758602980983,-200.0,0.0004348,42]
[387167394,1758602981008,-22309.888401,0.0004348,42]
[387167395,1758602981033,-151.0,0.0004348,42]
[387167396,1758602981058,-1948.78292101,0.00043481,42]
[387167397,1758602981083,-2000.0,0.000435,120]
[387167398,1758602981109,-566122.37990183,0.000435,120]
[387167399,1758602981135,-200.0,0.00043733,120]
[387167400,1758602981163,-1057.22,0.00043835,120]
[387167401,1758602981245,244.88621465,0.00024707,30]
[387167404,1758602998223,200.0,0.00039217,120]
[387167405,1758602998603,200.0,0.00032681,120]
[387167406,1758602999837,200.0,0.00039217,120]
[387167407,1758603000129,200.0,0.00032681,120]
[387167437,1758603031948,-165.81682424,0.00018764,2]
[387167438,1758603031958,-393.15310322,0.00018775,2]
[387167439,1758603031967,-844.36684267,0.00018864,2]
[387167441,1758603031978,-679.801605,0.00018975,2]
[387167443,1758603031988,-483.42570957,0.00019786,2]
[387167445,1758603031997,-491.17809881,0.00019786,2]
[387167456,1758603032007,-488.69980892,0.00019786,2]
[387167459,1758603032136,-484.90454206,0.00019786,2]
[387167462,1758603032145,-480.0,0.00019786,2]
[387167465,1758603032155,-480.0,0.00019786,2]
[387167468,1758603032165,-480.0,0.00019786,2]
[387167471,1758603032174,-480.0,0.00019786,2]
[387167474,1758603032183,-480.0,0.00019786,2]
[387167477,1758603032193,-480.0,0.00019786,2]
[387167479,1758603032203,-480.0,0.00019786,2]
[387167481,1758603032212,-480.0,0.00019786,2]
[387167482,1758603032222,-1216.25346553,0.00019786,2]
[387167541,1758603037905,-766.48445963,0.00019786,2]
[387168066,1758603043148,-908.49920167,0.00019786,2]
[387168068,1758603043159,-1326.13225223,0.00019786,2]
[387168071,1758603043176,-189.25943932,0.00019786,2]
[387168073,1758603043187,-493.92716976,0.00019787,2]
[387168075,1758603043196,-307.14,0.00019897,2]
[387168077,1758603043206,-480.0,0.00019897,2]
[387168079,1758603043215,-480.0,0.00019897,2]
[387168081,1758603043225,-480.0,0.00019897,2]
[387168083,1758603043236,-480.0,0.00019897,2]
[387168086,1758603043247,-480.0,0.00019898,2]
[387168088,1758603043257,-480.0,0.00019898,2]
[387168090,1758603043267,-480.0,0.00019898,2]
[387168092,1758603043276,-480.0,0.00019898,2]
[387168094,1758603043285,-480.0,0.00019898,2]
[387168096,1758603043295,-480.0,0.00019898,2]
[387168098,1758603043304,-484.62986956,0.00019899,2]
[387168100,1758603043314,-365.34936223,0.00019899,2]
[387168102,1758603043323,-480.0,0.00019899,2]
[387168104,1758603043332,-480.0,0.00019899,2]
[387168106,1758603043341,-480.0,0.00019899,2]
[387168108,1758603043351,-480.0,0.00019899,2]
[387168110,1758603043360,-485.29627251,0.00019899,2]
[387168112,1758603043369,-480.0,0.00019899,2]
[387168114,1758603043379,-574.42049014,0.00019899,2]
[387168116,1758603043388,-480.0,0.00019899,2]
[387168118,1758603043398,-480.0,0.00019899,2]
[387168120,1758603043407,-398.47604462,0.00019899,2]
[387168487,1758603047188,-480.0,0.00019898,2]
[387168489,1758603047198,-81.52395538,0.00019899,2]
[387168491,1758603047208,-480.0,0.00019899,2]
[387168493,1758603047218,-1517.79910762,0.0002,2]
[387168495,1758603047227,-480.0,0.0002006,2]
[387168497,1758603047236,-480.0,0.0002006,2]
[387168499,1758603047246,-480.0,0.0002006,2]
[387168501,1758603047255,-480.0,0.0002006,2]
[387168503,1758603047265,-553.73934633,0.0002006,2]
[387168505,1758603047276,-423.08065367,0.0002006,2]
[387168507,1758603047285,-480.0,0.0002006,2]
[387168509,1758603047295,-480.0,0.0002006,2]
[387168511,1758603047305,-480.0,0.0002006,2]
[387168513,1758603047315,-480.0,0.0002006,2]
[387168515,1758603047324,-1730.3,0.0002006,2]
[387168516,1758603047333,-210.31934637,0.0002006,2]
[387168519,1758603047345,-269.68065363,0.0002006,2]
[387168521,1758603047354,-480.0,0.0002006,2]
[387168522,1758603047363,-179.73040439,0.00020087,2]
[387168524,1758603047372,-205.54894188,0.00020171,2]
[387168527,1758603047384,-274.45105812,0.00020171,2]
[387168529,1758603047394,-479.76667188,0.00020171,2]
[387169233,1758604122767,183.99269249,0.00018,2]
[387169234,1758604181826,209.06635475,0.00025,120]
[387169240,1758604232188,-158.4763757,0.00018912,2]
[387169242,1758604232198,-339.900802,0.00018952,2]
[387169243,1758604232208,-443.97209553,0.00019178,2]
[387169244,1758604232218,-491.63639452,0.00019897,2]
[387169245,1758604232227,-300.0,0.00019897,2]
[387169246,1758604232238,-300.0,0.00019897,2]
[387169247,1758604232249,-300.0,0.00019897,2]
[387169248,1758604232259,-300.0,0.00019897,2]
[387169249,1758604232268,-480.0,0.00019898,2]